[Event "26th Womens ECCC 2022"]
[Site "Mayrhofen"]
[Date "2022.10.09"]
[Round "7.9"]
[White "Sukandar, Irine Kharisma"]
[Black "Bulmaga, Irina"]
[Result "1/2-1/2"]
[ECO "D37"]
[WhiteElo "2401"]
[BlackElo "2417"]
[Annotator "TA"]
[PlyCount "33"]
[EventDate "2022.10.03"]
[EventType "team-tourn"]
[EventCountry "AUT"]
[SourceTitle "playchess.com"]
[Source "ChessBase"]
[SourceQuality "1"]
[TimeControl "40/5400+30:1800+30"]

{[%evp 11,33,16,31,3,11,18,18,8,13,19,29,19,22,22,22,22,29,0,26,0,27,0,20,0]} 1. d4 {[%emt 0:00:07]} Nf6 {[%emt 0:00:09]} 2. c4 {[%emt 0:00:18]} e6 {[%emt 0:00:09]} 3. Nf3 {[%emt 0:00:24]} d5 {[%emt 0:00:08]} 4. Nc3 {[%emt 0:00:13]} Be7 {[%emt 0:00:09]} 5. Bf4 {[%emt 0:01:16]} O-O {[%emt 0:00:17]} 6. e3 {[%emt 0:02:06]} Nbd7 {[%emt 0:00:09]} 7. c5 {[%emt 0:02:00] D37: Queen's Gambit Declined: 5 Bf4.} Ne4 {[%emt 0:00:12]} 8. Nxe4 {[%emt 0:07:03]} dxe4 {[%emt 0:00:14]} 9. Ne5 {[%emt 0:00:17]} Nxe5 {[%emt 0:00:09]} 10. Bxe5 {[%emt 0:00:07]} Bd7 {[%emt 0:00:36]} 11. Bc4 {[%emt 0:03:34]} Bc6 {[%emt 0:03:00]} 12. O-O {[%emt 0:05:02]} Bf6 {[%emt 0:02:27]} 13. Bg3 {[%emt 0:02:01]} Bh4 {[%emt 0:01:07] [#]} 14. Be5 $146 {[%emt 0:04:43]} ({Predecessor:} 14. b4 Bxg3 15. fxg3 b5 16. cxb6 axb6 17. Qb3 Ba4 18. Qc3 Qd6 19. Rf4 Bc6 20. Raf1 Bd5 21. Bxd5 exd5 22. a3 c6 23. R4f2 b5 {½-½ (57) Hammer,J (2628)-Caruana,F (2827) Chess.com INT 2017}) 14... Bf6 {[%emt 0:00:17]} 15. Bg3 {[%emt 0:00:42]} Bh4 {[%emt 0:00:09]} 16. Be5 {[%emt 0:00:04]} Bf6 {[%emt 0:00:12]} 17. Bg3 {[%emt 0:00:06] A rather calm draw.  Weighted Error Value: White=0.13 (very precise) /Black=0.03 (flawless)} 1/2-1/2

[Event "26th Womens ECCC 2022"]
[Site "Mayrhofen"]
[Date "2022.10.09"]
[Round "7.10"]
[White "Saduakassova, Dinara"]
[Black "Arakhamia-Grant, Ketevan"]
[Result "1/2-1/2"]
[ECO "A10"]
[WhiteElo "2434"]
[BlackElo "2333"]
[Annotator "TA"]
[PlyCount "89"]
[EventDate "2022.10.03"]
[EventType "team-tourn"]
[EventCountry "AUT"]
[SourceTitle "playchess.com"]
[Source "ChessBase"]
[SourceQuality "1"]
[TimeControl "40/5400+30:1800+30"]

{[%evp 14,89,33,-66,-67,-61,-48,-43,-64,-72,-41,-42,-42,-61,-17,-39,-41,-45,-14,-69,-22,-50,-18,-25,-20,-33,-32,-32,-25,-64,-27,-59,-58,-58,-28,-33,-30,-27,-19,-35,0,-60,-57,-67,0,0,0,0,0,0,0,-69,-8,-114,-16,-16,0,0,0,0,0,0,0,0,0,0,0,0,0,0,0,0,0,0,0,0,0,0]} 1. c4 {[%emt 0:00:45]} g6 {[%emt 0:01:33]} 2. d4 {[%emt 0:02:31]} Bg7 {[%emt 0:00:11]} 3. Nf3 {[%emt 0:00:08]} d6 {[%emt 0:00:46]} 4. Nc3 {[%emt 0:01:38]} Nd7 {[%emt 0:02:17]} 5. g3 {[%emt 0:00:21]} e5 {[%emt 0:00:29]} 6. Bg2 {[%emt 0:00:55]} Ne7 {[%emt 0:00:46]} 7. O-O {[%emt 0:02:05]} O-O {[%emt 0:00:07]} 8. b3 {[%emt 0:04:23]} (8. e3 $14) 8... exd4 $15 {[%emt 0:06:30] A41: 1 d4 d6: Tartakower System and Modern Defence.} 9. Nd5 {[%emt 0:04:07]} Nxd5 {[%emt 0:18:21]} 10. cxd5 {[%emt 0:00:07]} d3 $1 {[%emt 0:00:23] [#] Black is slightly better.} 11. Bg5 $146 {[%emt 0:06:57]} ({Predecessor:} 11. Rb1 dxe2 12. Qxe2 Re8 13. Be3 Nf6 14. Qc4 Bf5 15. Rbc1 Be4 16. Rfd1 Qd7 17. Qxc7 Qxc7 18. Rxc7 Nxd5 {0-1 (54) Savran,S (1891)-Yilmazyerli,M (2312) Konya 2012}) 11... dxe2 {[%emt 0:00:27]} (11... Qe8 $5 {[%cal Rd3e2]} 12. exd3 Bxa1 13. Qxa1 f6 $15) 12. Qxe2 {[%emt 0:00:10]} Bf6 {[%emt 0:17:48]} 13. Qd2 {[%emt 0:05:07]} Nc5 {[%emt 0:15:41]} 14. b4 {[%emt 0:15:46]} Ne4 {[%emt 0:06:07]} 15. Bxf6 {[%emt 0:00:23]} Nxf6 {[%emt 0:02:26]} 16. Rfc1 {[%emt 0:04:00]} (16. Nd4 $11) 16... Re8 {[%emt 0:04:13]} (16... Bf5 $1 $15) 17. Rc4 $11 {[%emt 0:06:43]} Bg4 {[%emt 0:05:48]} 18. Rac1 {[%emt 0:05:36]} Rc8 {[%emt 0:06:08]} 19. h3 {[%emt 0:09:34]} Bxf3 {[%emt 0:01:43]} 20. Bxf3 {[%emt 0:00:28]} Nd7 {[%emt 0:00:13]} 21. Bg2 {[%emt 0:01:47]} a5 {[%emt 0:02:51]} 22. a3 {[%emt 0:05:34]} axb4 {[%emt 0:00:32]} 23. axb4 {[%emt 0:00:06]} Ne5 {[%emt 0:02:35]} 24. R4c3 {[%emt 0:02:22]} h5 {[%emt 0:00:43]} 25. f4 {[%emt 0:05:17]} Nd7 {[%emt 0:00:08]} 26. f5 {[%emt 0:02:02]} Ne5 {[%emt 0:01:04]} (26... gxf5 {seems wilder.} 27. Qh6 Re5 28. Qxh5 Nb6) 27. Rf1 {[%emt 0:02:19]} (27. Qh6 $11) 27... Qf6 $1 $15 {[%emt 0:01:28]} 28. h4 {[%emt 0:03:32] Against g5} c5 {[%emt 0:02:19]} (28... Ng4 $15 29. fxg6 Qxg6) 29. dxc6 $11 {[%emt 0:03:34]} bxc6 {[%emt 0:00:09]} 30. Be4 $36 {[%emt 0:02:25][%mdl 2048] [#] Hoping for fxg6. White has good play.} Qe7 {[%emt 0:00:57] Strongly threatening ...d5.} 31. fxg6 {[%emt 0:01:06]} fxg6 {[%emt 0:00:13] And now ...d5 would win.} 32. Qh6 {[%emt 0:00:11]} (32. Bxc6 $1 $11 Nxc6 33. Rxc6) 32... Qg7 {[%emt 0:00:29]} ({Black should try} 32... Qa7+ $15 33. Kh1 Rf8) 33. Qxg7+ $1 {[%emt 0:00:14]} Kxg7 {[%emt 0:00:04]} 34. Rfc1 $1 {[%emt 0:00:06] The position is equal.} Rb8 {[%emt 0:01:24] [#] aiming for ...d5.} 35. Bxc6 {[%emt 0:00:15]} Nxc6 {[%emt 0:00:22]} 36. Rxc6 {[%emt 0:00:03]} Rxb4 {[%emt 0:00:14]} 37. Rxd6 {[%emt 0:00:25][%mdl 4096] Endgame KRR-KRR} Re2 {[%emt 0:00:42]} 38. Rd7+ {[%emt 0:02:03]} Kh6 {[%emt 0:00:41]} 39. Rd3 {[%emt 0:01:24]} Rbb2 {[%emt 0:00:24]} 40. Rf3 {[%emt 0:00:36]} Rg2+ {[%emt 0:00:33]} 41. Kf1 {[%emt 0:30:05]} Rh2 {[%emt 0:30:28][%cal Rh2h1]} 42. Kg1 {[%emt 0:00:12] Against Rh1+} Rbg2+ {[%emt 0:00:00]} 43. Kf1 {[%emt 0:00:00]} Rb2 {[%emt 0:00:00][%cal Rh2h1]} 44. Kg1 {[%emt 0:00:00] Prevents Rh1+.} Rbg2+ {[%emt 0:00:00]} 45. Kf1 {[%emt 0:00:00] Weighted Error Value: White=0.18 (very precise) /Black=0.15 (very precise)} 1/2-1/2

[Event "26th Womens ECCC 2022"]
[Site "Mayrhofen"]
[Date "2022.10.09"]
[Round "7.11"]
[White "Hunt, Harriet V"]
[Black "Atalik, Ekaterina"]
[Result "0-1"]
[ECO "C92"]
[WhiteElo "2359"]
[BlackElo "2406"]
[Annotator "TA"]
[PlyCount "126"]
[EventDate "2022.10.03"]
[EventType "team-tourn"]
[EventCountry "AUT"]
[SourceTitle "playchess.com"]
[Source "ChessBase"]
[SourceQuality "1"]
[TimeControl "40/5400+30:1800+30"]

{[%evp 23,126,42,45,27,41,22,30,21,41,22,63,43,50,20,23,22,20,0,24,36,51,51,60,53,94,91,207,202,197,183,238,25,14,0,0,0,0,7,0,-20,0,-341,-318,-415,-478,-430,-77,-52,-60,-74,-54,-50,-21,-70,-70,-116,-117,-123,-118,-150,-140,-130,-138,-134,-112,-138,-116,-134,-134,-138,-129,-176,-180,-225,-245,-248,-237,-335,-344,-348,-333,-357,-318,-306,-302,-444,-442,-640,-635,-610,-488,-477,-473,-464,-414,-1035,-681,-5433,-4312,-12839,-12839,-29984,-29985,-29989,-29990]} 1. e4 {[%emt 0:00:03]} e5 {[%emt 0:00:07]} 2. Nf3 {[%emt 0:00:10]} Nc6 {[%emt 0:00:12]} 3. Bb5 {[%emt 0:00:19]} a6 {[%emt 0:00:22]} 4. Ba4 {[%emt 0:00:17]} Nf6 {[%emt 0:00:16]} 5. O-O {[%emt 0:00:34]} Be7 {[%emt 0:00:17]} 6. Re1 {[%emt 0:00:18]} b5 {[%emt 0:00:19]} 7. Bb3 {[%emt 0:00:06]} O-O {[%emt 0:00:27]} 8. c3 {[%emt 0:08:40]} d6 {[%emt 0:00:33]} 9. h3 {[%emt 0:00:11]} Re8 {[%emt 0:01:00]} 10. d4 {[%emt 0:02:23]} Bf8 {[%emt 0:01:57]} 11. Nbd2 {[%emt 0:02:14]} Na5 {[%emt 0:01:13]} 12. Bc2 {[%emt 0:00:18]} c5 {[%emt 0:04:31]} 13. a4 {[%emt 0:06:31] [#] C96: Closed Ruy Lopez: Chigorin Defence: 11 d4, replies other than 11...Qc7.} b4 $146 {[%emt 0:03:43]} ({Predecessor:} 13... Bb7 14. d5 c4 15. Nf1 Qc7 16. g4 Bc8 17. Ng3 Bd7 18. g5 Nxd5 19. exd5 Bxh3 20. axb5 axb5 {1-0 (39) Faizrakhmanov,R (2480)-Osmak,I (2432) Chess.com INT 2022}) 14. cxb4 {[%emt 0:03:45]} cxb4 {[%emt 0:01:19]} 15. d5 {[%emt 0:15:57] White has an edge.} g6 {[%emt 0:02:01]} 16. Nf1 {[%emt 0:03:30]} Nb7 {[%emt 0:02:26]} 17. Be3 {[%emt 0:04:54]} Nd7 {[%emt 0:04:26]} 18. N3d2 {[%emt 0:15:02]} (18. a5 $5) 18... a5 {[%emt 0:09:42]} 19. Nb3 {[%emt 0:03:08]} Nb6 {[%emt 0:02:55]} 20. Nbd2 {[%emt 0:09:19]} Bd7 {[%emt 0:04:18]} 21. Bd3 {[%emt 0:01:02]} Bg7 {[%emt 0:03:49]} 22. Ng3 {[%emt 0:03:35] Inhibits f5.} Rf8 {[%emt 0:01:04]} 23. b3 {[%emt 0:01:39]} Kh8 {[%emt 0:07:13]} 24. Rc1 {[%emt 0:03:11]} f5 {[%emt 0:05:23]} (24... Bf6 $16 {was called for.}) 25. exf5 $18 {[%emt 0:01:05]} gxf5 {[%emt 0:00:39]} 26. Qf3 {[%emt 0:03:27][%cal Rd3f5]} Nc5 {[%emt 0:06:03]} (26... Nc8 $142 27. Nh5 (27. Nxf5 Bxf5 28. Bxf5 Ne7 $16) (27. Bxf5 Ne7 $14) 27... e4) 27. Bxc5 $2 {[%emt 0:00:59]} (27. Bxf5 $18 {Qh5 is the strong threat.} Bxf5 28. Nxf5) 27... dxc5 $11 {[%emt 0:00:17]} 28. Red1 {[%emt 0:07:36][%cal Rd3f5]} Qg5 {[%emt 0:03:09]} 29. Qh5 $1 {[%emt 0:01:08]} ({Much weaker is} 29. Rxc5 e4 30. Ndxe4 fxe4 31. Qxe4 Qh6 $15) 29... Qf6 {[%emt 0:06:47]} 30. Rxc5 {[%emt 0:00:55][%cal Od3f5] Strongly threatening Bxf5!} Qd6 $36 {[%emt 0:08:38][%mdl 2048] Black has some pressure.} 31. Rdc1 {[%emt 0:01:05][%cal Rd3f5]} e4 {[%emt 0:00:40]} 32. Bb5 {[%emt 0:00:22][%mdl 8192]} (32. Ndxe4 $1 $11 fxe4 33. Bxe4) 32... Bd4 $19 {[%emt 0:04:31]} 33. Ndxe4 {[%emt 0:02:22]} fxe4 {[%emt 0:00:36] Dancing on a razor blade.} 34. Nxe4 {[%emt 0:00:04]} Qg6 {[%emt 0:07:09]} (34... Qf4 $19 {has better winning chances.} 35. Ng5 Bf5) 35. Qxg6 $17 {[%emt 0:00:24]} hxg6 {[%emt 0:00:05]} 36. Bxd7 {[%emt 0:00:18]} Nxd7 {[%emt 0:00:24]} 37. R5c4 {[%emt 0:00:24]} Be5 {[%emt 0:01:54]} (37... Ba7 $5 {[%cal Rd7f6]}) 38. Rd1 {[%emt 0:01:07]} (38. g3 $11) 38... Rac8 $15 {[%emt 0:01:51]} 39. Rc6 {[%emt 0:00:18]} ({White should try} 39. Rxc8 $15 Rxc8 40. Kf1) 39... Rxc6 $1 $17 {[%emt 0:00:42]} 40. dxc6 {[%emt 0:00:07] [#]} Nb8 {[%emt 0:00:24]} 41. Rc1 {[%emt 0:31:07]} Rc8 {[%emt 0:32:08]} 42. Rc5 {[%emt 0:00:31]} Nxc6 {[%emt 0:01:43]} 43. Kf1 {[%emt 0:00:00]} Bb8 {[%emt 0:00:00]} 44. g4 {[%emt 0:00:00]} Kg7 {[%emt 0:00:00]} 45. h4 {[%emt 0:00:00]} Re8 {[%emt 0:00:00]} 46. Nd2 {[%emt 0:00:00]} Re6 {[%emt 0:00:00]} 47. Rb5 {[%emt 0:00:00]} (47. Nc4 $17) 47... Bc7 $19 {[%emt 0:00:00]} 48. Rc5 {[%emt 0:00:00]} Bb6 {[%emt 0:00:00]} 49. Rd5 {[%emt 0:00:00]} Nd4 {[%emt 0:00:00]} 50. g5 {[%emt 0:00:26]} (50. Kg2 $142) 50... Kf7 {[%emt 0:00:00]} 51. Rd7+ {[%emt 0:00:34]} Ke8 {[%emt 0:00:00]} 52. Rb7 {[%emt 0:00:40]} Kd8 {[%emt 0:00:00]} 53. Rh7 {[%emt 0:00:41]} Bc7 {[%emt 0:00:01] Threatens to win with ...Bf4.} 54. Rf7 {[%emt 0:00:49] Against Bf4} (54. h5 {was necessary.} Bf4 55. hxg6 Rxg6 56. Rh4) 54... Rc6 {[%emt 0:01:22]} 55. Ne4 {[%emt 0:03:22]} (55. Kg2 $142) 55... Nxb3 {[%emt 0:00:44]} 56. Nf6 {[%emt 0:00:14]} Nc5 {[%emt 0:02:08]} 57. h5 {[%emt 0:00:49]} gxh5 {[%emt 0:04:26] Hoping for ...b3.} 58. g6 {[%emt 0:00:27] [#] Black must now prevent g7.} Ne6 {[%emt 0:00:18]} 59. Rd7+ {[%emt 0:00:18]} (59. Rf8+ $142 Nxf8 60. g7 Rxf6 61. g8=Q) 59... Kc8 {[%emt 0:00:04]} 60. Re7 {[%emt 0:00:33][%cal Oe7e6]} b3 {[%emt 0:01:43] ( -> ...b2)} 61. Rxe6 {[%emt 0:00:45]} b2 {[%emt 0:00:11]} ({Inferior is} 61... Rxe6 62. g7 b2 63. g8=Q+ $11) 62. g7 {[%emt 0:00:49]} b1=Q+ {[%emt 0:00:06]} 63. Re1 {[%emt 0:00:11]} Qd3+ {[%emt 0:00:06] What a fight!  Weighted Error Value: White=0.69/Black=0.25 (precise)} 0-1

[Event "26th Womens ECCC 2022"]
[Site "Mayrhofen"]
[Date "2022.10.09"]
[Round "7.12"]
[White "Efroimski, Marsel"]
[Black "Toma, Katarzyna"]
[Result "1-0"]
[ECO "B90"]
[WhiteElo "2462"]
[BlackElo "2249"]
[Annotator "TA"]
[PlyCount "83"]
[EventDate "2022.10.03"]
[EventType "team-tourn"]
[EventCountry "AUT"]
[SourceTitle "playchess.com"]
[Source "ChessBase"]
[SourceQuality "1"]
[TimeControl "40/5400+30:1800+30"]

{[%evp 9,83,29,35,9,32,0,0,0,0,-7,0,10,35,0,20,0,0,0,0,0,30,0,0,-37,-14,-43,0,0,8,7,5,7,52,41,84,77,208,202,257,271,310,213,191,200,241,178,313,269,300,306,597,438,436,437,460,466,469,463,460,445,429,415,489,472,454,482,602,400,416,418,405,397,353,338,362,344]} 1. e4 {[%emt 0:00:01]} c5 {[%emt 0:00:05]} 2. Nf3 {[%emt 0:00:02]} d6 {[%emt 0:00:06]} 3. d4 {[%emt 0:00:10]} cxd4 {[%emt 0:00:06]} 4. Nxd4 {[%emt 0:00:01]} Nf6 {[%emt 0:00:09]} 5. Nc3 {[%emt 0:00:04]} a6 {[%emt 0:00:04]} 6. Qd3 {[%emt 0:00:03] B90: Sicilian Najdorf: Unusual White 6th moves, 6 Be3 Ng4 and 6 Be3 e5.} Nbd7 {[%emt 0:05:28]} 7. a4 {[%emt 0:00:12]} Nc5 {[%emt 0:05:20]} 8. Qe3 {[%emt 0:00:05] The position is equal.} e5 {[%emt 0:02:58] [#]} 9. Nf3 $146 {[%emt 0:02:21]} ({Predecessor:} 9. Nb3 Nxb3 10. cxb3 Be6 11. Bc4 Be7 12. O-O Rc8 13. Qe2 O-O 14. Rd1 Qc7 15. Bg5 Bxc4 16. bxc4 Qxc4 {½-½ (60) Carlsen,M (2862)-Vachier Lagrave,M (2784) chess24.com INT 2021}) 9... b6 {[%emt 0:05:54]} 10. Bc4 {[%emt 0:07:56]} Be6 {[%emt 0:03:17]} 11. Be2 {[%emt 0:01:10]} h6 {[%emt 0:01:57]} 12. b4 {[%emt 0:01:24]} Ncd7 {[%emt 0:00:37]} 13. O-O {[%emt 0:04:26]} Be7 {[%emt 0:02:59]} 14. Rd1 {[%emt 0:00:15]} Qc7 {[%emt 0:01:07]} 15. Bb2 {[%emt 0:03:30]} O-O {[%emt 0:00:25]} 16. Rac1 {[%emt 0:01:52]} Qb7 {[%emt 0:06:56]} 17. Ne1 {[%emt 0:00:31]} Ng4 {[%emt 0:11:14]} 18. Qf3 {[%emt 0:07:02]} a5 {[%emt 0:06:18]} 19. bxa5 {[%emt 0:06:12]} Rxa5 {[%emt 0:00:15]} 20. Bb5 {[%emt 0:00:24]} Nc5 {[%emt 0:01:43]} 21. Nd3 {[%emt 0:04:36]} Rc8 {[%emt 0:01:18]} 22. Nxc5 {[%emt 0:05:00]} dxc5 {[%emt 0:05:32] This move loses the game for Black.} (22... bxc5 $16 {was called for.} 23. Nd5 Bxd5 24. exd5 (24. Rxd5 Nf6 $11) 24... Nf6) 23. Nd5 $18 {[%emt 0:00:42]} Bg5 {[%emt 0:00:42]} 24. Rb1 {[%emt 0:02:23]} Nf6 {[%emt 0:14:33]} 25. h3 {[%emt 0:15:13]} Bxd5 {[%emt 0:04:10]} 26. exd5 {[%emt 0:00:46]} e4 {[%emt 0:03:07]} 27. Qf5 {[%emt 0:03:07]} e3 {[%emt 0:03:59]} (27... Rd8 {keeps fighting.} 28. Bc6 Qe7) 28. fxe3 {[%emt 0:02:44]} Bxe3+ {[%emt 0:00:41]} 29. Kh1 {[%emt 0:00:04]} Bg5 {[%emt 0:01:17]} (29... Bd4 30. Bxd4 cxd4 31. Rxd4 Rc5) 30. Bc6 {[%emt 0:02:39] This bishop pair is nice.} Qc7 {[%emt 0:01:00]} 31. Be5 {[%emt 0:00:27]} Qd8 {[%emt 0:00:18] [#]} 32. Rxb6 $3 {[%emt 0:05:16][%mdl 512]} g6 {[%emt 0:08:05] [#]} 33. Qxc8 {[%emt 0:00:10][%mdl 512]} Qxc8 {[%emt 0:00:03]} 34. Rb8 {[%emt 0:00:08]} Qxb8 {[%emt 0:00:09]} 35. Bxb8 {[%emt 0:00:05]} Ne4 {[%emt 0:00:10] Threatens to win with ...Nf2+.} 36. Re1 {[%emt 0:03:50]} f5 {[%emt 0:00:22]} 37. d6 {[%emt 0:00:45]} Kf7 {[%emt 0:05:07]} 38. Bxe4 {[%emt 0:02:24]} fxe4 {[%emt 0:00:05]} 39. Rxe4 {[%emt 0:00:04]} Bd8 {[%emt 0:01:13]} 40. Bc7 {[%emt 0:02:15]} Ra8 {[%emt 0:00:37]} 41. Rc4 {[%emt 0:30:47]} Ke8 {[%emt 0:30:43]} 42. a5 {[%emt 0:00:18] Weighted Error Value: White=0.25 (precise) /Black=0.44} ({Don't play} 42. Rxc5 Rxa4 43. Re5+ Kd7 44. Bxd8 Kxd8 $18) 1-0

[Event "26th Womens ECCC 2022"]
[Site "Mayrhofen"]
[Date "2022.10.09"]
[Round "7.13"]
[White "Muzychuk, Mariya"]
[Black "Salimova, Nurgyul"]
[Result "1-0"]
[ECO "C54"]
[WhiteElo "2527"]
[BlackElo "2415"]
[Annotator "TA"]
[PlyCount "141"]
[EventDate "2022.10.03"]
[EventType "team-tourn"]
[EventCountry "AUT"]
[SourceTitle "playchess.com"]
[Source "ChessBase"]
[SourceQuality "1"]
[TimeControl "40/5400+30:1800+30"]

{[%evp 12,141,19,14,26,16,19,21,16,14,29,34,34,20,18,11,60,62,70,66,74,70,93,92,91,85,97,81,83,63,158,172,156,137,153,149,158,147,160,127,131,112,112,110,110,110,111,110,138,146,131,112,129,122,143,131,140,88,117,100,97,48,61,41,216,225,294,316,290,297,296,233,475,422,588,400,524,516,12834,12835,12835,12835,12836,12836,12837,12837,12837,12838,12837,12836,12837,12838,12838,12839,12841,12841,12843,12843,12845,12838,12838,12838,12838,12839,12841,12841,12841,12842,12849,12849,12850,101,12850,27998,27999,27999,27998,27998,27999,27999,27999,27999,27999,27999,27999,27999,27999,27999,27999,27999,27999,27999]} 1. e4 {[%emt 0:00:04]} e5 {[%emt 0:00:06]} 2. Nf3 {[%emt 0:00:09]} Nc6 {[%emt 0:00:05]} 3. Bc4 {[%emt 0:00:32]} Bc5 {[%emt 0:00:13]} 4. c3 {[%emt 0:00:18]} Nf6 {[%emt 0:00:15]} 5. d3 {[%emt 0:00:11]} d6 {[%emt 0:00:32]} 6. O-O {[%emt 0:00:27]} h6 {[%emt 0:02:34]} 7. Re1 {[%emt 0:01:54]} O-O {[%emt 0:03:14] C54: Giuoco Piano: 4 c3 Nf6, main lines with 5 d4 and 5 d3.} 8. Nbd2 {[%emt 0:01:38]} Bb6 {[%emt 0:04:20]} 9. h3 {[%emt 0:00:52]} Na5 {[%emt 0:08:26] The position is equal.} 10. Bb5 {[%emt 0:24:03]} Bd7 {[%emt 0:04:38]} 11. Bxd7 {[%emt 0:02:22]} Qxd7 {[%emt 0:03:21] [#]} 12. b4 $146 {[%emt 0:01:21]} ({Predecessor:} 12. Nf1 Rfe8 13. Ne3 Bxe3 14. Bxe3 Nc6 15. Nh4 d5 16. Qf3 Qe6 17. Nf5 Ne7 18. Qg3 Nxf5 19. exf5 Qxf5 20. Bxh6 {1-0 (49) Nandin,E (1494)-Acs,K (1685) Hungary 2018}) 12... Nc6 {[%emt 0:00:06]} 13. Nc4 {[%emt 0:00:13]} a5 {[%emt 0:17:00]} (13... Rfe8 $11) 14. b5 $14 {[%emt 0:02:30]} Ne7 {[%emt 0:00:57]} 15. Nxb6 {[%emt 0:01:39]} cxb6 {[%emt 0:00:06]} 16. c4 {[%emt 0:02:43]} Ng6 {[%emt 0:00:24]} 17. Nh2 {[%emt 0:02:15]} Qe6 {[%emt 0:07:13]} 18. Ng4 {[%emt 0:03:04]} Nd7 {[%emt 0:01:34]} 19. Ne3 {[%emt 0:00:27]} Ne7 {[%emt 0:00:15]} 20. g4 {[%emt 0:22:25]} g6 {[%emt 0:07:52]} (20... Qf6 $14) 21. Nd5 $1 $16 {[%emt 0:01:58]} Nxd5 {[%emt 0:01:06]} 22. exd5 {[%emt 0:00:59]} Qf6 {[%emt 0:00:59]} 23. Bxh6 {[%emt 0:00:19]} Rfc8 {[%emt 0:00:47]} 24. Bd2 {[%emt 0:04:52]} Kg7 {[%emt 0:10:34]} 25. Kg2 {[%emt 0:00:18]} Rh8 {[%emt 0:00:43]} 26. Be3 {[%emt 0:04:45]} g5 {[%emt 0:05:08]} 27. Rh1 {[%emt 0:01:17]} Qg6 {[%emt 0:03:29]} 28. Qe2 {[%emt 0:08:57]} Rh4 {[%emt 0:03:59]} 29. f3 {[%emt 0:01:02]} f5 {[%emt 0:03:51]} 30. Bf2 {[%emt 0:03:54]} Rh6 {[%emt 0:00:17]} 31. gxf5 {[%emt 0:00:48] White is more active.} Qxf5 {[%emt 0:00:08]} 32. Qe4 {[%emt 0:00:05]} Rf8 {[%emt 0:01:48]} 33. Qxf5 {[%emt 0:01:47] The board is on fire.} Rxf5 {[%emt 0:00:05]} 34. Be3 {[%emt 0:00:22]} ({Better is} 34. h4) 34... Rhf6 {[%emt 0:08:43]} 35. Raf1 {[%emt 0:01:34]} Nc5 {[%emt 0:00:42]} 36. d4 {[%emt 0:01:00]} (36. h4 $1 $16 {[%cal Rh4g5]}) 36... Nd3 $14 {[%emt 0:00:29]} 37. h4 $36 {[%emt 0:00:14][%mdl 2048] White has good play.} Nf4+ $2 {[%emt 0:01:27] Black is on the road to losing.} (37... gxh4 $14 38. Rxh4 Rg6+ 39. Kh3 e4) 38. Bxf4 $18 {[%emt 0:01:12]} Rxf4 {[%emt 0:00:18]} 39. dxe5 $1 {[%emt 0:00:47]} ({Less strong is} 39. hxg5 R6f5 $16) 39... dxe5 {[%emt 0:00:05]} 40. hxg5 {[%emt 0:00:12][%mdl 4096] Endgame KRR-KRR} Rg6 {[%emt 0:00:16]} 41. Rd1 {[%emt 0:10:00]} e4 $2 {[%emt 0:08:04]} (41... Rxg5+ 42. Kf2 Rgf5) 42. Rh5 {[%emt 0:09:43] And now d6 would win.} exf3+ {[%emt 0:11:09]} 43. Kf2 {[%emt 0:00:27] Hoping for d6.} Rd6 {[%emt 0:02:56]} 44. Rh6 {[%emt 0:04:02]} Rxh6 {[%emt 0:05:31]} (44... Rd8 $142 45. Rxb6 Rxc4 46. Rxb7+ Kg6) 45. gxh6+ {[%emt 0:00:03]} Kxh6 {[%emt 0:00:06] KR-KR} 46. d6 {[%emt 0:02:02][%cal Bd5d6,Bd6d7][%mdl 32] Threatening mate with d7.} Rf8 {[%emt 0:00:06]} 47. d7 {[%emt 0:00:57]} Rd8 {[%emt 0:00:04]} 48. Kxf3 {[%emt 0:00:16] Ke4 would kill now.} Kg5 {[%emt 0:02:26] [#]} 49. Ke4 $1 {[%emt 0:00:37] Intending Ke5 and mate.} Kf6 {[%emt 0:00:06] [#]} 50. Rd6+ $1 {[%emt 0:00:21]} Ke7 {[%emt 0:00:17]} 51. Rxb6 {[%emt 0:00:13]} Rxd7 {[%emt 0:00:16]} 52. c5 {[%emt 0:00:07]} a4 {[%emt 0:05:12]} 53. a3 {[%emt 0:02:03]} Rc7 {[%emt 0:00:43]} 54. Kd5 {[%emt 0:00:34]} ({Stronger than} 54. c6 bxc6 55. bxc6 (55. Rxc6 Rxc6 56. bxc6 Kd6 $11) 55... Kd6 $11) 54... Kd8 {[%emt 0:00:20]} 55. Rh6 {[%emt 0:01:37]} Rg7 {[%emt 0:00:25]} 56. Rh8+ {[%emt 0:04:03]} Kd7 {[%emt 0:01:31]} 57. b6 {[%emt 0:00:03]} Rg6 {[%emt 0:01:10]} 58. Rb8 {[%emt 0:00:46]} Rg5+ {[%emt 0:00:31]} 59. Kc4 {[%emt 0:00:04]} Rg7 {[%emt 0:00:27]} 60. Rxb7+ {[%emt 0:01:30]} Kc6 {[%emt 0:00:06]} 61. Rc7+ $1 {[%emt 0:00:08]} Rxc7 {[%emt 0:00:07]} 62. bxc7 {[%emt 0:00:05]} Kxc7 $16 {[%emt 0:00:03] KPP-KP. White mates.} 63. Kb5 {[%emt 0:00:04]} Kb7 {[%emt 0:00:03]} 64. Kxa4 {[%emt 0:00:03] KP-KP} Kc6 {[%emt 0:00:07]} 65. Kb4 {[%emt 0:00:03]} Kc7 {[%emt 0:00:03]} 66. Kb5 {[%emt 0:00:02]} Kb7 {[%emt 0:00:04]} 67. c6+ {[%emt 0:00:10]} Kc7 {[%emt 0:00:09]} 68. Kc5 {[%emt 0:00:06]} Kc8 {[%emt 0:00:05]} 69. Kb6 {[%emt 0:00:06]} Kb8 {[%emt 0:00:03]} 70. a4 {[%emt 0:00:09]} Ka8 {[%emt 0:00:04]} 71. Kc7 {[%emt 0:00:04] Weighted Error Value: White=0.10 (very precise) /Black=0.35} 1-0